Cogmind - Beta 16 @@@ ROGUE MODE // 2025.10.25 @ 15:52:03 Player: Finestep Result: Destroyed by H-71 Marshal with Heavy Mass Driver Performance ------------- Evolutions (7) 3500 Regions Visited (17) 3400 Robots Destroyed (240) 1200 Value Destroyed (9022) 9022 Prototype IDs (23) 460 Alien Tech Used (0) 0 Bonus (4830) 4830 TOTAL SCORE: 22412 Bonus ------- High Alert Combat Kills 1232 Follower Combat Kills 1428 Entered DSFs 500 Registered with UFD 300 Met Warlord at Base 500 MAIN.C Attacked Warlord 500 Warlord Defense Kills 586 Friendly Fire -216 Cogmind --------- Core Integrity 0/1300 Matter 355/600 Energy 54/100 System Corruption 17% Temperature Cool (0) Movement Walking (250) Ox2 Location -3/Research Parts ------- > --- POWER (2) -------- (None) > --- PROPULSION (4) --- Enhanced Multireflex Exoskeleton Enhanced Multireflex Exoskeleton > --- UTILITY (12) ----- Advanced Power Amplifier Improved Coolant Injector Huge Storage Unit Improved Matter Compressor Advanced Visual Processing Unit Surveybot 17 Chip Experimental Target Analyzer Experimental Core Analyzer Improved Weapon Cycler Experimental ECM Suite > --- WEAPON (3) ------- Compact HERF Cannon KE Penetrator > --- INVENTORY (25) --- Light Antimatter Reactor Centrium Wheel Experimental Matter Compressor (0) Ghost Barrier Long-range Tractor Beam Compact HERF Cannon Compact HERF Cannon Compact HERF Cannon Vortex Driver (12) Vortex Driver (10) Precision Rocket Launcher CPS Tube (2) DRS Beacon (Ready) Peak State ------------ > --- POWER ------------ Reinforced Fission Core Light Antimatter Reactor > --- PROPULSION ------- Overtuned Huge Scrapsphere Overtuned Huge Scrapsphere > --- UTILITY ---------- Scrap Suit Advanced Heat Sink Improved Cooling System High-capacity Storage Unit Advanced Terrain Scanner Surveybot 17 Chip Experimental Target Analyzer Experimental Core Analyzer Improved Weapon Cycler Insulated Plating Improved Hacking Suite > --- WEAPON ----------- Heavy Phase Cannon Heavy Mass Driver > --- INVENTORY -------- Micro Fission Core Vortex Chain Reactor Advanced Medium Treads Centrium Wheel Improved Coolant Injector Experimental Matter Compressor Transport Network Coupler Ghost Barrier Long-range Tractor Beam Overtuned Beamcaster Cooled Proton Cannon Vortex Driver Vortex Driver Overtuned Coil Gun Heavy Shock Bomb Launcher Precision Rocket Launcher CPS Tube DRS Beacon [Rating: 131] Favorites ----------- Power Antimatter Reactor Engine Improved Deuterium Engine Power Core Reinforced Fission Core Reactor Antimatter Reactor Propulsion Heavy Treads Treads Heavy Treads Leg Aluminum Leg Wheel Overtuned Huge Scrapsphere Utility Scrap Suit Device Scrap Suit Storage High-capacity Storage Unit Processor Surveybot 17 Chip Hackware Improved Hacking Suite Protection Improved Medium Armor Plating Weapon Improved Assault Rifle Energy Gun Medium Laser Energy Cannon Heavy Phase Cannon Ballistic Gun Improved Assault Rifle Ballistic Cannon Heavy Assault Cannon Launcher Heavy Shock Bomb Launcher Special Weapon CPS Tube Impact Weapon Hammer Slashing Weapon Power Sword Build | -11 -10 -10 -9 -9 -9 -9 -6 -6 -5 -5 -5 -5 -5 -5 -4 -4 -3 ------- Run | Yrd Mat Min Mat Sto Rec Scr Fac DSF Fac Was Fac Upp Upp War Pro Fac Res Slots Evolved 14 | . . . 2 . . . 6 . 2 . . . . . . 2 2 Power 1 | . . . . . . . 1 . . . . . . . . . . Propulsion 2 | . . . 1 . . . 1 . . . . . . . . . . Utility 10 | . . . 1 . . . 3 . 2 . . . . . . 2 2 Weapon 1 | . . . . . . . 1 . . . . . . . . . . Parts Attached 174 | 7 13 3 12 25 2 5 5 8 6 9 7 5 4 12 2 21 28 Power 25 | 1 2 . 2 1 . 1 1 . . 2 . 1 1 3 . 7 3 Engine 6 | 1 1 . 1 1 . 1 1 . . . . . . . . . . Core 7 | . 1 . 1 . . . . . . . . 1 1 . . 3 . Reactor 12 | . . . . . . . . . . 2 . . . 3 . 4 3 Propulsion 36 | 2 5 . 5 8 1 1 1 . . 4 . 1 1 . . 2 5 Treads 20 | . . . 3 8 1 1 1 . . 3 . . 1 . . 1 1 Leg 12 | 2 5 . 2 . . . . . . . . . . . . . 3 Wheel 4 | . . . . . . . . . . 1 . 1 . . . 1 1 Hover . | . . . . . . . . . . . . . . . . . . Flight . | . . . . . . . . . . . . . . . . . . Utility 65 | 2 3 . 1 9 1 2 2 7 3 2 5 2 . 6 2 7 11 Device 37 | 1 1 . 1 3 . 1 1 7 2 1 4 2 . 2 1 3 7 Storage 9 | 1 1 . . 2 1 . . . . 1 . . . 1 . . 2 Processor 7 | . . . . 1 . . 1 . 1 . . . . 1 1 . 2 Hackware 3 | . . . . 1 . . . . . . 1 . . . . 1 . Protection 9 | . 1 . . 2 . 1 . . . . . . . 2 . 3 . Artifact . | . . . . . . . . . . . . . . . . . . Weapon 48 | 2 3 3 4 7 . 1 1 1 3 1 2 1 2 3 . 5 9 Energy Gun 4 | . 1 . . . . . . . . . . . . . . . 3 Energy Cannon 8 | . . . . 1 . . . . 1 . 1 . . 1 . 2 2 Ballistic Gun 23 | 2 1 1 4 4 . . 1 . 1 1 1 . 2 1 . 1 3 Ballistic Cannon 5 | . . 1 . . . . . 1 . . . . . 1 . 2 . Launcher 4 | . 1 1 . 1 . . . . . . . . . . . . 1 Special Weapon 2 | . . . . . . . . . 1 . . 1 . . . . . Impact Weapon 1 | . . . . 1 . . . . . . . . . . . . . Slashing Weapon 1 | . . . . . . 1 . . . . . . . . . . . Piercing Weapon . | . . . . . . . . . . . . . . . . . . Special Melee Weapon . | . . . . . . . . . . . . . . . . . . Unidentified Prototypes 18 | . . . 1 3 . . . . . . 1 . . 7 1 . 5 Corrupted Parts 2 | . . . . . . . . . . . . . . . 1 . 1 System Corruption 6 | . . . . . . . . . . . . . . . 1 . 5 Parts Lost 55 | . 2 . 2 9 . . . . . . 2 . . . . 12 28 Power 10 | . 1 . 1 . . . . . . . 1 . . . . 2 5 Propulsion 8 | . . . . 4 . . . . . . . . . . . 1 3 Utility 21 | . 1 . . 4 . . . . . . . . . . . 5 11 Weapon 16 | . . . 1 1 . . . . . . 1 . . . . 4 9 Highest Loss Streak 9 | . 1 . 1 5 . . . . . . 1 . . . . 7 9 To Critical Strikes . | . . . . . . . . . . . . . . . . . . Average Backups 13 | 3 8 10 9 9 11 14 12 13 13 16 16 16 17 16 16 16 15 Power . | . . . . . . . . . . . . . . . 1 1 2 Propulsion 1 | 1 2 3 1 2 2 2 1 . 1 1 2 2 2 2 1 . 1 Utility 5 | . . . . 1 2 3 4 7 8 11 12 10 10 9 8 7 5 Weapon 5 | . 4 7 7 5 6 7 5 4 2 2 2 3 5 5 5 6 6 Tool/Special . | . . . . . . . . . . . . . . . . . . Unused Backups 55 | . . . 3 7 . 6 1 9 4 4 3 3 . 3 2 4 6 Power 2 | . . . . . . . . . . 1 . . . . . . 1 Propulsion 8 | . . . . 2 . 1 . . 1 1 1 1 . . 1 . . Utility 20 | . . . . 1 . 1 1 7 2 2 1 . . 2 1 1 1 Weapon 24 | . . . 3 4 . 4 . 2 1 . 1 2 . 1 . 3 3 Tool/Special 1 | . . . . . . . . . . . . . . . . . 1 Average Slot Usage (%) 87 | . 98 100 94 98 100 100 91 89 87 78 77 81 82 82 82 77 75 Engine 5 | . 8 . 5 9 11 11 13 13 11 6 . . . . . . . Core 1 | . 5 14 2 1 . . . . . . . 4 5 4 . 2 3 Reactor 3 | . . . . . . . . . . 4 9 5 5 5 11 7 3 Treads 15 | . . . 15 32 33 33 25 26 23 12 11 9 5 5 5 4 . Leg 3 | . 27 28 16 . . . . . . . . . . . . . . Wheel 1 | . . . . . . . . . . . . 1 5 5 5 5 7 Device 12 | . 4 14 21 5 . 6 12 15 17 17 14 16 17 14 10 12 20 Storage 7 | . 14 14 11 11 11 11 6 6 5 5 5 5 5 5 5 5 5 Processor 10 | . . . . 10 11 4 5 6 10 11 11 11 11 13 17 20 16 Protection 5 | . 8 . . 4 11 11 6 4 4 5 5 5 5 4 5 4 2 Energy Cannon 1 | . . . . . . . . . 1 . 3 11 5 3 . 3 3 Ballistic Gun 12 | . 19 10 19 20 22 15 19 12 3 5 6 5 10 11 15 10 2 Ballistic Cannon 1 | . . 4 . . . . . 3 5 5 2 . . 1 . . 2 Peak Build Rating 131 | 7 10 10 15 28 19 33 51 54 66 94 99 98 99 115 117 130 131 Average Rating 66 | 5 8 10 11 20 19 27 50 52 64 86 93 96 98 102 112 123 120 On Entrance 56 | . 7 10 10 15 19 19 33 51 54 65 94 90 98 99 114 117 122 Avg Prop Armor Cover (%) 8 | . . . . 8 . . . . . . . 9 9 9 9 8 5 Naked Turns . | . . . . . . . . . . . . . . . . . . Heaviest Build 168 | 13 19 21 23 31 37 50 67 67 80 106 109 103 104 111 106 113 168 Greatest Support 140 | 20 20 20 60 69 63 65 85 85 85 140 140 140 20 20 20 70 40 Greatest Overweight (x) 10 | 1 1 1 . 1 . . . . . 1 . 5 5 5 5 5 10 Average Overweight (x) 1 | . . . . . . . . . . . . 1 4 4 5 4 4 Largest Inventory Capacity 25 | 8 10 10 10 10 15 15 15 15 15 20 20 20 20 20 20 20 25 Average Capacity 16 | 7 8 10 10 10 14 15 15 15 15 19 20 20 20 20 20 20 23 Most Carried 21 | 4 10 10 10 10 12 15 15 15 15 20 20 20 20 20 20 20 21 Average Carried 15 | 3 8 10 9 9 11 14 13 14 14 18 19 19 19 19 19 19 17 Final Capacity 25 | 8 10 10 10 10 15 15 15 15 15 20 20 20 20 20 20 20 25 Final Carried 20 | 4 10 10 10 10 12 15 15 14 15 20 20 20 20 20 19 20 13 Scrap Suit Usage (%) 24 | . . . . . . . 99 48 . 77 8 23 98 54 42 91 19 Parts Cannibalized 9 | . . . . . . . . . . . 2 . . . 1 5 1 Class Distribution -------------------- 21% | Mutant 14% | Commander-Mutant 14% | Scavenger-Scrapper 13% | Scavenger-Tank 11% | Scavenger-Gunner 6% | Commander-Tank 6% | Scavenger-Mutant 4% | Tank 4% | Gunner Dominant Class ---------------- Mutant | -10/Materials Mutant | -10/Mines Scavenger-Mutant | -9/Materials Mutant | -9/Storage Commander-Mutant | -9/Recycling Commander-Mutant | -9/Scraptown Commander-Tank | -6/Factory Gunner | -6/DSF Tank | -5/Factory Scavenger-Tank | -5/Waste Scavenger-Tank | -5/Factory Commander-Tank | -5/Upper Caves Scavenger-Scrapper | -5/Upper Caves Scavenger-Scrapper | -5/Warlord Scavenger-Scrapper | -4/Proximity Caves Scavenger-Gunner | -4/Factory Scavenger-Gunner | -3/Research Resources | -11 -10 -10 -9 -9 -9 -9 -6 -6 -5 -5 -5 -5 -5 -5 -4 -4 -3 ----------- Run | Yrd Mat Min Mat Sto Rec Scr Fac DSF Fac Was Fac Upp Upp War Pro Fac Res Matter Collected 8827 | 310 291 79 361 1054 38 65 . 619 611 404 641 88 154 954 348 1362 1448 Remotely 725 | . . . . . . . . . . . . . . 313 121 110 181 Salvage Created 12365 | 185 670 91 986 1266 71 . . 412 817 160 1306 153 189 274 311 2934 2540 Parts 549 | 10 31 5 56 61 4 . . 15 24 8 52 8 3 9 20 124 119 Haulers Intercepted 13 | . 2 . 2 4 . . . 1 . . . . . . . 3 1 Recyclers Shooed 13 | . 1 1 1 4 . . . . 2 . 2 . . . . 1 1 Parts Field Recycled . | . . . . . . . . . . . . . . . . . . Retrieved Matter . | . . . . . . . . . . . . . . . . . . Parts Self-Destructed 49 | . . . . . . . . . . . . 17 12 . 20 . . Prevented . | . . . . . . . . . . . . . . . . . . Parts Restored . | . . . . . . . . . . . . . . . . . . Kills | -11 -10 -10 -9 -9 -9 -9 -6 -6 -5 -5 -5 -5 -5 -5 -4 -4 -3 ------- Run | Yrd Mat Min Mat Sto Rec Scr Fac DSF Fac Was Fac Upp Upp War Pro Fac Res Combat Hostiles Destroyed 154 | . 11 5 12 13 . . . 7 8 . 14 2 2 5 14 30 31 Melee 1 | . . . . . . . . . . . . . . 1 . . . Guns 100 | . 10 3 12 13 . . . 3 4 . 10 1 1 3 11 21 8 Cannons 37 | . . . . . . . . 4 4 . 3 1 . 1 . 8 16 AOE 11 | . . 2 . . . . . . . . . . . . 3 . 6 Classes Destroyed 18 | 2 6 . 1 2 . . . 1 1 1 1 . 1 . . 2 . Worker 9 | . 1 . 1 . . . . . . . 1 . . . . 2 4 Builder 18 | . 2 . . 1 . . . . . . 1 . . . . 7 7 Tunneler 6 | 5 . . . . . . . . . . . . . . . 1 . Hauler 13 | . 2 . 2 4 . . . 1 . . . . . . . 3 1 Recycler 24 | 1 1 . 4 4 1 . . . 3 . 4 . . . . 4 2 Minesweeper 1 | . . . . . . . . . . . . . 1 . . . . Mechanic 1 | . . . . 1 . . . . . . . . . . . . . Operator 2 | . . . . 1 . . . . . . 1 . . . . . . Watcher 9 | . 1 . 1 . . . . . . . . . . . . 2 5 Swarmer 37 | . 2 3 . 1 . . . 3 . . . . . 1 13 7 7 Grunt 63 | . 9 2 9 3 . . . 2 6 . 9 . 2 1 . 12 8 Brawler 2 | . . . . . . . . . . . . . . . . 2 . Duelist 1 | . . . . . . . . . . . . . . . . 1 . Sentry 17 | . . . 3 8 . . . . 1 . 1 1 . 1 . 1 1 Specialist 4 | . . . . . . . . 2 . . . . . . . 2 . Hunter 13 | . . . . . . . . . 1 . 2 1 . 1 . . 8 Programmer 16 | . . . . . . . . . . . 2 . . 2 1 4 7 Scrapoid 3 | . . . . . . . . . . 2 . . . . . 1 . Best Kill Streak 19 | 2 3 3 5 4 1 . . 4 6 . 4 1 2 2 5 19 9 Combat Bots Only 8 | . 3 3 3 2 . . . 3 5 . 4 1 2 2 5 6 8 Max Kills in Single Turn 3 | 1 1 2 1 1 1 . . 1 1 1 2 1 1 1 3 3 2 Gunslinging 1 | . . . . . . . . . . . . . . . 1 1 . Exploded 3 | . . 2 . . . . . . . . . . . . 3 . 1 Melee 1 | . . . . . . . . . . . . . . 1 . . . Uniques/NPCs Destroyed 1 | . . . . 1 . . . . . . . . . . . . . 01-MTF (-9/Storage) Combat | -11 -10 -10 -9 -9 -9 -9 -6 -6 -5 -5 -5 -5 -5 -5 -4 -4 -3 -------- Run | Yrd Mat Min Mat Sto Rec Scr Fac DSF Fac Was Fac Upp Upp War Pro Fac Res Hostile Shots Fired 1155 | . 59 22 47 195 . . . 38 43 . 54 2 10 35 30 212 408 Missed 347 | . 13 1 17 63 . . . 14 14 . 13 . 2 16 4 53 137 Hits 808 | . 46 21 30 132 . . . 24 29 . 41 2 8 19 26 159 271 Melee 3 | . . . . . . . . . . . . . . 1 . 2 . Projectile 805 | . 46 21 30 132 . . . 24 29 . 41 2 8 18 26 157 271 AOE 1 | . . . . . . . . . . . . . . . . 1 . Critical Strikes 34 | . 1 . . 7 . . . . 1 . 2 . 2 . . 10 11 Actively Blocked 1 | . . . . . . . . . . . . . . . . 1 . Part Disruptions 17 | . . . . 15 . . . . . . . . . . . . 2 Damage Taken 15186 | . 545 284 400 2316 . . . 352 293 . 809 44 174 316 333 3749 5571 Core 2565 | . 137 112 82 288 . . . . 26 . 38 . 37 42 14 416 1373 Absorbed by Shields 880 | . . . . . . . . 120 303 . . . . 168 85 36 168 Reduced by Siege Mode 114 | . . . . . . . . . . . . . . . . 114 . Redirected to Shielding 107 | . . . . . . . . . . . . . . . . 107 . Ignored by Resistances 113 | . . . . . . . . . . . . . . . 33 20 60 Regen/Repaired (Parts) 910 | . 12 . 152 . . 569 . . . . 10 . . 74 10 73 10 Core Remaining (%) 59 | 100 . . . . . 7 . 100 . . . . . . 84 63 . Volleys Fired 782 | 20 75 19 55 119 1 . . 31 40 26 70 7 17 24 30 104 144 Largest 3 | 2 2 2 2 2 2 . . 3 2 2 3 3 3 3 3 3 3 Hottest 288 | 40 70 80 70 46 46 . . 73 85 82 207 205 205 117 152 167 288 Shots Fired 1548 | 40 147 35 104 211 3 . . 76 69 50 154 13 35 62 66 234 249 Gun 1114 | 40 145 30 104 211 3 . . 61 29 26 66 2 16 38 52 163 128 Cannon 403 | . . 4 . . . . . 15 38 24 88 10 19 24 11 71 99 Launcher 28 | . 2 1 . . . . . . . . . . . . 3 . 22 Special 3 | . . . . . . . . . 2 . . 1 . . . . . Kinetic 1190 | 40 107 16 100 211 3 . . 76 61 50 89 2 16 57 52 176 134 Thermal 302 | . 38 18 4 . . . . . 6 . 65 10 19 4 11 56 71 Explosive 6 | . 2 1 . . . . . . . . . . . . 3 . . Electromagnetic 39 | . . . . . . . . . . . . . . . . 2 37 Entropic 8 | . . . . . . . . . . . . . . 1 . . 7 Robot Hit Streak 26 | 6 18 5 14 21 5 . . 23 8 26 20 26 16 9 7 18 8 Robot Miss Streak 8 | 2 4 4 3 4 . . . 1 8 2 3 . 3 3 5 3 4 Penetration Max 2 | . . . . . . . . . 1 . 2 . . 1 1 2 1 Secondary Targets 10 | . . 1 . 1 . . . 1 . . . . . . 2 5 . Max Gunslinging Chain 1 | . . 1 . 1 . . . 1 . . . . . . 1 1 . Shots Hit Robots 947 | 26 103 21 78 161 2 . . 53 39 36 80 6 18 26 25 144 129 Core Hits 426 | 12 37 11 37 46 1 . . 20 18 5 36 4 5 11 15 85 83 Critical Kills 23 | . . . . . . . . . . . 4 . . 1 1 12 5 Critical Parts Destroyed 32 | . 1 . . . . . . . 1 . 2 . . 3 4 16 5 Critical Strikes 80 | . 3 1 . . . . . 2 3 3 6 . . 4 5 32 21 Burn 7 | . 2 1 . . . . . . . . . . . . . . 4 Meltdown 2 | . . . . . . . . . . . 1 . . . . 1 . Destroy 54 | . 1 . . . . . . . 1 1 5 . . 4 5 27 10 Blast 15 | . . . . . . . . 2 2 2 . . . . . 4 5 Sunder 2 | . . . . . . . . . . . . . . . . . 2 Melee Attacks 20 | . . . . 20 . . . . . . . . . . . . . Impact 20 | . . . . 20 . . . . . . . . . . . . . Slashing . | . . . . . . . . . . . . . . . . . . Piercing . | . . . . . . . . . . . . . . . . . . Sneak Attacks . | . . . . . . . . . . . . . . . . . . Combat Hostiles . | . . . . . . . . . . . . . . . . . . Follow-up Attacks . | . . . . . . . . . . . . . . . . . . Damage Inflicted 27561 | 218 953 346 900 2509 33 . . 1006 1544 1683 3110 162 504 1239 1070 5779 6505 Guns 16156 | 218 953 170 900 2500 33 . . 732 383 602 1395 22 281 871 794 4280 2022 Cannons 9631 | . . 75 . . . . . 274 1161 1081 1628 140 223 360 . 1494 3195 Explosions 1731 | . . 101 . . . . . . . . 79 . . . 276 . 1275 Melee . | . . . . . . . . . . . . . . . . . . Ramming 43 | . . . . 9 . . . . . . 8 . . 8 . 5 13 Kinetic 21145 | 218 620 134 876 2500 33 . . 1006 1544 1683 1888 22 281 1231 794 4673 3642 Thermal 4171 | . 333 111 24 . . . . . . . 1214 140 223 . . 1060 1066 Explosive 409 | . . 101 . . . . . . . . . . . . 276 . 32 Electromagnetic 1631 | . . . . . . . . . . . . . . . . 41 1590 Impact . | . . . . . . . . . . . . . . . . . . Slashing . | . . . . . . . . . . . . . . . . . . Piercing . | . . . . . . . . . . . . . . . . . . Entropic 162 | . . . . . . . . . . . . . . . . . 162 Highest Corruption 17 | . 1 1 . 9 9 . . . . . 4 . . 3 4 6 17 Average Corruption 5 | . 1 1 . 8 9 . . . . . 3 . . 2 3 3 6 Corruption Purged 4 | . . . . . . . . . . . 4 . . . . . . Corruption Blocked . | . . . . . . . . . . . . . . . . . . Effects 141 | . 4 . . 40 18 . . . . . 17 . . 1 15 16 30 Message Errors 31 | . 1 . . 5 6 . . . . . 5 . . . 4 3 7 Matter Fused 27 | . . . . 10 3 . . . . . 3 . . 1 2 3 5 Heat Flow Errors 19 | . . . . 8 1 . . . . . 1 . . . 1 6 2 Energy Discharges 14 | . . . . 4 3 . . . . . 2 . . . 1 1 3 Parts Rejected 1 | . . . . . . . . . . . . . . . . . 1 Parts Fused 1 | . . . . . . . . . . . . . . . 1 . . Data Loss (minor) 17 | . 1 . . 4 3 . . . . . 3 . . . 2 2 2 Data Loss (major) 8 | . 1 . . 2 . . . . . . . . . . 2 1 2 Misfires 6 | . . . . 1 1 . . . . . 1 . . . 1 . 2 Alerts 5 | . . . . 2 1 . . . . . 1 . . . . . 1 Weapon Failures 12 | . 1 . . 4 . . . . . . 1 . . . 1 . 5 Overload Shots . | . . . . . . . . . . . . . . . . . . Overflow Damage 574 | . . 10 . . . . . . 66 . 155 . . . 24 105 214 Projectiles 496 | . . . . . . . . . 66 . 111 . . . . 105 214 Explosions 78 | . . 10 . . . . . . . . 44 . . . 24 . . Melee . | . . . . . . . . . . . . . . . . . . Knockbacks 34 | . . . . . . . . 1 8 . 7 . . 2 . 2 14 Impact . | . . . . . . . . . . . . . . . . . . Kinetic 31 | . . . . . . . . 1 8 . 6 . . 2 . 2 12 Secondary 3 | . . . . . . . . . . . 1 . . . . . 2 Self-Inflicted Damage 88 | . . . . . . . . . . . . . . 1 56 . 31 Shots 2 | . . . . . . . . . . . . . . . 1 . 1 Rammed 11 | . . . . 4 . . . . . . 2 . . 3 . 1 1 Targets Rammed 14 | . . . . 5 . . . . . . 2 . . 4 . 2 1 Kicked . | . . . . . . . . . . . . . . . . . . Crushed 3 | . . . . 1 . . . . . . . . . 1 . 1 . Highest Temperature 636 | . 265 345 14 273 178 . . 524 72 45 257 60 383 204 210 313 636 Average Temperature 82 | . 80 174 7 73 91 . . 163 12 17 57 33 88 45 69 93 109 Received Heat Transfer 2189 | . 279 141 174 318 . . . 32 86 . 235 9 84 8 . 531 292 Effects 15 | . . 5 . . . . . 3 . . . . . . . 3 4 Shutdowns 3 | . . . . . . . . 2 . . . . . . . . 1 Interference 6 | . . 3 . . . . . . . . . . . . . 3 . Short Circuit 2 | . . 1 . . . . . . . . . . . . . . 1 Damage (minor) 2 | . . 1 . . . . . 1 . . . . . . . . . Damage (core) 2 | . . . . . . . . . . . . . . . . . 2 Siege Activations 3 | . . . . . . . . . . . . . . . . 3 . Total Turns 128 | . . . . . . . . . . . . . . . . 128 . Longest Duration 59 | . . . . . . . . . . . . . . . . 59 . Martial Activations . | . . . . . . . . . . . . . . . . . . Shielding Activations . | . . . . . . . . . . . . . . . . . . Robots Disrupted . | . . . . . . . . . . . . . . . . . . Combat Hostiles . | . . . . . . . . . . . . . . . . . . Robots Corrupted 1 | . . . . . . . . . . . . . . . . . 1 Combat Hostiles 1 | . . . . . . . . . . . . . . . . . 1 Parts Fried 7 | . . . . 1 . . . . . . . . . . . . 6 Impact Corruptions . | . . . . . . . . . . . . . . . . . . Robots Melted 5 | . 1 . . . . . . . . . 1 . 1 . . 1 1 Combat Hostiles 4 | . 1 . . . . . . . . . 1 . 1 . . 1 . Parts Melted 27 | . 5 1 . . . . . 4 . . 6 1 3 1 . 5 1 Heat Transferred 6180 | . 1147 407 74 . . . . . . . 1345 148 259 . . 1036 1764 Parts Sabotaged . | . . . . . . . . . . . . . . . . . . Parts Stolen . | . . . . . . . . . . . . . . . . . . Parts Stripped . | . . . . . . . . . . . . . . . . . . Power Chain Reactions 3 | . . . . . . . . . . . . . . . . . 3 Alert | -11 -10 -10 -9 -9 -9 -9 -6 -6 -5 -5 -5 -5 -5 -5 -4 -4 -3 ------- Run | Yrd Mat Min Mat Sto Rec Scr Fac DSF Fac Was Fac Upp Upp War Pro Fac Res Maximum Alert Level 4 | . . . . . . . . . . . 2 . . . . 4 3 Low Security (%) 77 | 100 100 100 100 100 100 . 100 100 100 100 84 . . . . 43 . Level 1 1 | . . . . . . . . . . . 3 . . . . 10 . Level 2 13 | . . . . . . . . . . . 11 . . . . 17 66 Level 3 5 | . . . . . . . . . . . . . . . . 8 33 Level 4 2 | . . . . . . . . . . . . . . . . 20 . Level 5 . | . . . . . . . . . . . . . . . . . . High Security . | . . . . . . . . . . . . . . . . . . Max Security . | . . . . . . . . . . . . . . . . . . Sterilizations 1 | . . . . . . . . 1 . . . . . . . . . Peak Influence 1271 | 5 98 86 192 169 65 . 14 173 192 61 502 . . . . 1271 951 Initial 639 | . 3 9 29 59 63 . . 2 90 61 . . . . . 21 639 Average 191 | 1 36 68 83 43 19 . 1 103 88 11 107 . . . . 505 627 Influence Increases 7162 | 30 345 127 437 550 42 . 18 233 398 58 984 98 177 254 365 1920 1126 Destroy 0b10 Robot/C 3600 | . 220 100 240 240 . . . 180 180 . 280 60 120 200 280 880 620 Destroy 0b10 Robot/NC 415 | 30 35 . 40 55 5 . . 5 15 . 35 . 5 . . 95 95 Destroy Leader 702 | . 46 20 66 108 . . . 30 50 . 60 10 10 . 40 150 112 Allied During Kill 316 | . . . . . . . . 9 17 . 2 28 42 54 . 164 . Successful Hack 162 | . . . 31 24 7 . 18 . 30 . 18 . . . . 6 28 Select Force Hacks 120 | . 30 . 30 30 30 . . . . . . . . . . . . Disable Machine 645 | . . . . 60 . . . . 15 . 285 . . . . 180 105 Destroy Structure 887 | . 14 7 . 3 . . . 9 46 58 274 . . . . 340 136 Lose Combat Pursuer 315 | . . . 30 30 . . . . 45 . 30 . . . 45 105 30 Influence Decreases 6219 | 25 326 75 372 528 205 . 14 64 394 235 494 472 233 206 438 736 1402 Entered New Map 1414 | . 2 15 47 82 100 . . 2 83 116 . 182 23 60 108 14 580 Time Decay 3918 | 25 304 60 315 385 105 . 14 . 311 95 434 270 190 66 320 482 542 Lost Part 490 | . 20 . 10 40 . . . . . . 20 . . . . 120 280 Lost Ally 388 | . . . . 12 . . . 62 . 24 40 20 20 80 10 120 . Purge Threat 9 | . . . . 9 . . . . . . . . . . . . . Squads Dispatched 51 | . 3 . 1 3 . . . 2 5 . 14 . . . . 10 13 Investigation 20 | . 2 . 1 1 . . . . 4 . 5 . . . . 5 2 Extermination 9 | . . . . . . . . . 1 . 3 . . . . 2 3 Reinforcement 17 | . 1 . . 2 . . . 2 . . 4 . . . . 3 5 Assault 5 | . . . . . . . . . . . 2 . . . . . 3 Garrison . | . . . . . . . . . . . . . . . . . . Intercept . | . . . . . . . . . . . . . . . . . . Searches Triggered . | . . . . . . . . . . . . . . . . . . Construction Impeded 2 | . . . . . . . . . . . . . . . . . 2 Haulers Reinforced 4 | . . . . . . . . . . . 2 . . . . 1 1 Active Scanning Responses . | . . . . . . . . . . . . . . . . . . Cargo Convoy Interrupts 1 | . . . . . . . . . . . 1 . . . . . . Stealth | -11 -10 -10 -9 -9 -9 -9 -6 -6 -5 -5 -5 -5 -5 -5 -4 -4 -3 --------- Run | Yrd Mat Min Mat Sto Rec Scr Fac DSF Fac Was Fac Upp Upp War Pro Fac Res Distress Signals 15 | . 1 . 3 5 . . . . . . . . . 1 . 2 3 Communications Jammed 1 | . . . . . . . . . . . 1 . . . . . . Distress Signals 1 | . . . . . . . . . . . 1 . . . . . . Times Spotted 297 | . 21 5 19 31 . . . 9 9 6 20 2 6 59 16 52 42 Peak Tracking Total 12 | . 5 3 4 5 . . . 3 4 2 2 1 5 12 6 7 6 Tactical Retreats 18 | . . . 1 4 . . . . 1 . 2 . . . 3 5 2 Traps | -11 -10 -10 -9 -9 -9 -9 -6 -6 -5 -5 -5 -5 -5 -5 -4 -4 -3 ------- Run | Yrd Mat Min Mat Sto Rec Scr Fac DSF Fac Was Fac Upp Upp War Pro Fac Res Traps Triggered 9 | . 2 . . 1 . . . . 1 . . . . . . 5 . Indirectly . | . . . . . . . . . . . . . . . . . . Trap Hack Attempts . | . . . . . . . . . . . . . . . . . . Triggered . | . . . . . . . . . . . . . . . . . . Disarmed . | . . . . . . . . . . . . . . . . . . Reprogrammed . | . . . . . . . . . . . . . . . . . . Reused . | . . . . . . . . . . . . . . . . . . Traps Extracted . | . . . . . . . . . . . . . . . . . . Installed . | . . . . . . . . . . . . . . . . . . Triggered . | . . . . . . . . . . . . . . . . . . Machines | -11 -10 -10 -9 -9 -9 -9 -6 -6 -5 -5 -5 -5 -5 -5 -4 -4 -3 ---------- Run | Yrd Mat Min Mat Sto Rec Scr Fac DSF Fac Was Fac Upp Upp War Pro Fac Res Machines Disabled 46 | . . . . 4 . . . 2 1 . 19 . . 1 . 12 7 Max in Single Turn 4 | . . . . 1 . . . 1 1 . 4 . . 1 . 3 1 Garrison Access 1 | . . . . . . . . . . . 1 . . . . . . Machines Repaired . | . . . . . . . . . . . . . . . . . . Machines Dismantled . | . . . . . . . . . . . . . . . . . . Machines Sabotaged . | . . . . . . . . . . . . . . . . . . Overloaded Fab Kills . | . . . . . . . . . . . . . . . . . . Hacking | -11 -10 -10 -9 -9 -9 -9 -6 -6 -5 -5 -5 -5 -5 -5 -4 -4 -3 --------- Run | Yrd Mat Min Mat Sto Rec Scr Fac DSF Fac Was Fac Upp Upp War Pro Fac Res Machines Accessed 66 | . 9 . 7 6 3 2 3 . 6 . 14 1 . 2 . 8 5 Terminals 34 | . 7 . 5 5 2 . 2 . 1 . 7 . . . . 1 4 Fabricators 5 | . . . . . . . . . 1 . 3 . . . . . 1 Repair Stations 5 | . 1 . 1 . . . . . . . . . . . . 3 . Recycling Units 14 | . 1 . 1 1 1 . . . 4 . 3 . . . . 3 . Scanalyzers 3 | . . . . . . . 1 . . . 1 . . . . 1 . Garrison Access . | . . . . . . . . . . . . . . . . . . Total Hacks 171 | . 24 . 24 21 5 11 7 . 15 . 35 1 . 2 . 17 9 Successful 87 | . 4 . 15 8 4 11 3 . 8 . 19 1 . 2 . 8 4 Failed 83 | . 20 . 9 13 1 . 3 . 7 . 16 . . . . 9 5 Catastrophic 21 | . 4 . 2 4 1 . 1 . 1 . 4 . . . . 2 2 Database Lockouts 1 | . . . . . . . 1 . . . . . . . . . . Manual 71 | . 16 . 11 8 2 . 2 . 6 . 16 . . . . 9 1 Terminals 101 | . 21 . 15 20 4 . 3 . 5 . 23 . . . . 3 7 Fabricators 10 | . . . . . . . . . 2 . 6 . . . . . 2 Repair Stations 14 | . 2 . 7 . . . . . . . . . . . . 5 . Recycling Units 24 | . 1 . 2 1 1 . . . 8 . 5 . . . . 6 . Scanalyzers 8 | . . . . . . . 4 . . . 1 . . . . 3 . Garrison Access . | . . . . . . . . . . . . . . . . . . Terminal Hacks 46 | . 2 . 5 7 3 11 1 . 2 . 9 1 . 2 . 1 2 Record 5 | . . . . . . 3 . . . . 1 . . 1 . . . Part Schematic 3 | . 1 . 1 . . . . . . . 1 . . . . . . Robot Analysis 8 | . . . . . . 8 . . . . . . . . . . . Prototype ID Bank 3 | . . . . 1 1 . . . . . 1 . . . . . . Open Door 4 | . . . . 2 . . . . . . . 1 . 1 . . . Open DSF 1 | . . . . . . . 1 . . . . . . . . . . Branch Access Points 4 | . . . 1 . . . . . 1 . 1 . . . . 1 . Terminal Index 2 | . . . 1 . . . . . . . 1 . . . . . . Fabricator Index 1 | . . . . . . . . . . . . . . . . . 1 Scanalyzer Index 1 | . . . . . 1 . . . . . . . . . . . . Unreport Threat 1 | . . . . 1 . . . . . . . . . . . . . Locate Traps 5 | . . . . 2 . . . . 1 . 2 . . . . . . Hauler Manifests 2 | . . . 1 . . . . . . . 1 . . . . . . Registered Components 2 | . . . . . . . . . . . 1 . . . . . 1 Zone Layout 4 | . 1 . 1 1 1 . . . . . . . . . . . . Fabricator Hacks 4 | . . . . . . . . . 1 . 1 . . . . . 2 Network Status 2 | . . . . . . . . . 1 . 1 . . . . . . Load Schematic 1 | . . . . . . . . . . . . . . . . . 1 Build 1 | . . . . . . . . . . . . . . . . . 1 Repair Station Hacks 7 | . . . 6 . . . . . . . . . . . . 1 . Scan Component 4 | . . . 3 . . . . . . . . . . . . 1 . Repair 3 | . . . 3 . . . . . . . . . . . . . . Recycling Unit Hacks 2 | . . . 1 . . . . . 1 . . . . . . . . Retrieve Components 2 | . . . 1 . . . . . 1 . . . . . . . . Scanalyzer 4 | . . . . . . . 1 . . . 1 . . . . 2 . Insert Component 1 | . . . . . . . . . . . . . . . . 1 . Analyze 1 | . . . . . . . . . . . . . . . . 1 . Retrieve Study 2 | . . . . . . . 1 . . . 1 . . . . . . Garrison Access Hacks . | . . . . . . . . . . . . . . . . . . Unauthorized Hacks 24 | . 2 . 3 1 1 . 1 . 4 . 8 . . . . 4 . Terminals 5 | . . . 2 . . . 1 . . . 2 . . . . . . Track 1 | . . . . . . . . . . . 1 . . . . . . Botnet 4 | . . . 2 . . . 1 . . . 1 . . . . . . Fabricators 3 | . . . . . . . . . . . 3 . . . . . . Liberate 2 | . . . . . . . . . . . 2 . . . . . . Haulers 1 | . . . . . . . . . . . 1 . . . . . . Repair Stations 2 | . 1 . . . . . . . . . . . . . . 1 . Patch 2 | . 1 . . . . . . . . . . . . . . 1 . Recycling Units 14 | . 1 . 1 1 1 . . . 4 . 3 . . . . 3 . Tunnel 4 | . 1 . 1 1 1 . . . . . . . . . . . . Fedlink 6 | . . . . . . . . . 3 . 2 . . . . 1 . Scrapoids 4 | . . . . . . . . . 1 . 1 . . . . 2 . Scanalyzers . | . . . . . . . . . . . . . . . . . . Garrison Access . | . . . . . . . . . . . . . . . . . . Data Cores Recovered . | . . . . . . . . . . . . . . . . . . Used . | . . . . . . . . . . . . . . . . . . Hacking Detections 45 | . 8 . 6 5 2 . 1 . 3 . 10 . . . . 5 5 Full Trace Events 7 | . 1 . . 2 . . . . . . 1 . . . . 1 2 Feedback Events 1 | . . . . . . . . . . . . . . . . 1 . Corruption 1 | . . . . . . . . . . . . . . . . 1 . Feedback Blocked . | . . . . . . . . . . . . . . . . . . Robot Schematics Acquired . | . . . . . . . . . . . . . . . . . . Robots Built . | . . . . . . . . . . . . . . . . . . Authchips . | . . . . . . . . . . . . . . . . . . Time . | . . . . . . . . . . . . . . . . . . Total Robot Build Rating . | . . . . . . . . . . . . . . . . . . Part Schematics Acquired 3 | . 1 . 1 . . . . . . . 1 . . . . . . Parts Built 1 | . . . . . . . . . . . . . . . . . 1 Authchips . | . . . . . . . . . . . . . . . . . . Time 51 | . . . . . . . . . . . . . . . . . 51 Total Part Build Rating 1 | . . . . . . . . . . . . . . . . . 1 Part Studies Acquired 2 | . . . . . . . 1 . . . 1 . . . . . . Parts Repaired 3 | . . . 3 . . . . . . . . . . . . . . Time 78 | . . . 78 . . . . . . . . . . . . . . Parts Recycled . | . . . . . . . . . . . . . . . . . . Recycled Matter . | . . . . . . . . . . . . . . . . . . Retrieved Matter . | . . . . . . . . . . . . . . . . . . Retrieved Components 6 | . . . 4 . . . . . 2 . . . . . . . . Parts Scanalyzed 1 | . . . . . . . . . . . . . . . . 1 . Part Schematics Acquired . | . . . . . . . . . . . . . . . . . . Parts Damaged . | . . . . . . . . . . . . . . . . . . Bothacking | -11 -10 -10 -9 -9 -9 -9 -6 -6 -5 -5 -5 -5 -5 -5 -4 -4 -3 ------------ Run | Yrd Mat Min Mat Sto Rec Scr Fac DSF Fac Was Fac Upp Upp War Pro Fac Res Used RIF Installer . | . . . . . . . . . . . . . . . . . . Robots Hacked . | . . . . . . . . . . . . . . . . . . Non-combat . | . . . . . . . . . . . . . . . . . . Combat . | . . . . . . . . . . . . . . . . . . Robot Hacks Applied . | . . . . . . . . . . . . . . . . . . Relay Couplers Released 3 | . . . . . . . . . . . 3 . . . . . . Machine Destruction 3 | . . . . . . . . . . . 3 . . . . . . Fabnet Peak Effective % . | . . . . . . . . . . . . . . . . . . Robots Rewired 9 | . . . . . 4 . . . . . . . . 5 . . . Allies Hacked 1 | . . . . . . . . . . . 1 . . . . . . Hacks Repelled . | . . . . . . . . . . . . . . . . . . Allies | -11 -10 -10 -9 -9 -9 -9 -6 -6 -5 -5 -5 -5 -5 -5 -4 -4 -3 -------- Run | Yrd Mat Min Mat Sto Rec Scr Fac DSF Fac Was Fac Upp Upp War Pro Fac Res Total Allies 31 | . . . . . 4 . . . 5 . 7 . . 5 . 10 . Largest Group 7 | . . . . . 4 4 4 4 5 4 5 5 4 7 1 5 . Highest-Rated Group 338 | . . . . . 46 46 46 46 235 188 241 241 188 338 64 244 . Highest-Rated Ally 64 | . . . . . 15 15 15 15 47 47 50 50 47 64 64 53 . Total Orders 2 | . . . . . . 2 . . . . . . . . . . . STAY 1 | . . . . . . 1 . . . . . . . . . . . FOLLOW 1 | . . . . . . 1 . . . . . . . . . . . Ally Attacks 304 | . . . . . . . . 14 13 115 2 10 29 37 . 84 . Total Damage 7138 | . . . . . . . . 282 313 2478 33 128 767 1165 . 1972 . Kills 33 | . . . . . . . . 2 1 4 . 1 4 6 . 15 . Allies Corrupted 1 | . . . . 1 . . . . . . . . . . . . . Allies Melted 1 | . . . . . . . . . . . . . . 1 . . . Intel | -11 -10 -10 -9 -9 -9 -9 -6 -6 -5 -5 -5 -5 -5 -5 -4 -4 -3 ------- Run | Yrd Mat Min Mat Sto Rec Scr Fac DSF Fac Was Fac Upp Upp War Pro Fac Res Active Infowar (turns) 8961 | 69 331 95 928 238 . . . 112 585 554 1296 596 387 735 631 861 1543 Optics 839 | . . . . . . . . . . . . . . . . . 839 Sensors 2 | . . . . . . . . 2 . . . . . . . . . Terrain 5692 | . . . . . . . . 109 585 . 1230 528 354 735 631 599 921 Structural 1496 | . 235 95 928 238 . . . . . . . . . . . . . Seismic 1110 | 69 96 . . . . . . 1 . . . . . . . . 944 T.N.C. 79 | . . . . . . . . . . . . . . . . . 79 Cloaking 1 | . . . . . . . . . . . . . . 1 . . . Jamming 1323 | . . . . . . . . . . 554 379 68 33 . . 289 . ECM 5 | . . . . . . . . . . . . . . . . . 5 Robot Analysis Total 8 | . . . . . . 8 . . . . . . . . . . . Derelict Logs Recovered 3 | . . . . . . . . . . . . 1 1 . 1 . . Drone Launches 6 | . . . . 6 . . . . . . . . . . . . . Drone Recoveries . | . . . . . . . . . . . . . . . . . . Exploration | -11 -10 -10 -9 -9 -9 -9 -6 -6 -5 -5 -5 -5 -5 -5 -4 -4 -3 ------------- Run | Yrd Mat Min Mat Sto Rec Scr Fac DSF Fac Was Fac Upp Upp War Pro Fac Res Turns Passed 15741 | 178 1040 136 931 1637 472 2003 297 413 750 554 1837 597 389 926 790 1248 1543 Spaces Moved 8248 | 89 631 59 429 643 268 1248 171 166 369 233 948 368 271 590 564 653 548 Core 7 | 7 . . . . . . . . . . . . . . . . . Treads 4543 | . . . 235 643 268 1248 171 166 369 233 948 257 . . . 5 . Legs 966 | 82 631 59 194 . . . . . . . . . . . . . . Wheels 2732 | . . . . . . . . . . . . 111 271 590 564 648 548 Hover . | . . . . . . . . . . . . . . . . . . Flight . | . . . . . . . . . . . . . . . . . . Fastest Speed 50 | 50 120 120 120 160 160 155 156 156 156 156 160 110 110 110 120 90 90 Average Speed 142 | 124 120 134 141 160 160 157 156 156 156 160 160 147 119 119 120 115 136 Slowest Speed 290 | 190 190 190 160 240 160 160 156 156 156 240 160 160 120 120 120 200 290 Overloaded Moves . | . . . . . . . . . . . . . . . . . . Propulsion Burnouts . | . . . . . . . . . . . . . . . . . . Robots Hopped . | . . . . . . . . . . . . . . . . . . Potential Cave-ins . | . . . . . . . . . . . . . . . . . . Cave-ins Triggered . | . . . . . . . . . . . . . . . . . . Exploration Rate (%) 44 | 5 80 9 33 71 50 88 4 86 10 71 24 50 41 75 65 18 17 Regions Visited 17 Branch Regions 8 Pre-discovered Areas 6 | . 1 . 1 2 1 . . . . . . 1 . . . . . Known Exits Taken 3 | . . . 1 . . . 1 . . . 1 . . . . . . Unknown Exits Taken 11 | 1 1 1 . 1 1 1 . . . . . 1 1 1 1 1 . Scrap Searched 11 | . . . . . . 4 . . . . . 3 1 . 3 . . Spaces Dug 159 | . 9 . . 1 . . . 4 8 6 48 4 5 26 21 23 4 Terrain Destroyed 674 | . 16 7 . 1 . . . 9 21 19 157 5 22 59 91 202 65 Melee 1 | . . . . 1 . . . . . . . . . . . . . Projectile 447 | . . . . . . . . 9 21 19 87 5 22 59 61 118 46 AOE 226 | . 16 7 . . . . . . . . 70 . . . 30 84 19 Terrain Rammed . | . . . . . . . . . . . . . . . . . . Walls Destroyed . | . . . . . . . . . . . . . . . . . . Machines Disabled . | . . . . . . . . . . . . . . . . . . Actions | -11 -10 -10 -9 -9 -9 -9 -6 -6 -5 -5 -5 -5 -5 -5 -4 -4 -3 --------- Run | Yrd Mat Min Mat Sto Rec Scr Fac DSF Fac Was Fac Upp Upp War Pro Fac Res Total 10955 | 121 787 83 661 1008 309 1296 201 259 461 364 1144 412 309 771 630 968 1171 Wait 1164 | 2 46 1 137 129 12 22 17 23 16 72 89 16 10 49 17 104 402 Move 8233 | 88 630 58 428 642 267 1247 170 165 369 232 947 367 270 590 563 652 548 Hop . | . . . . . . . . . . . . . . . . . . Pick Up 144 | 4 9 . 11 21 1 11 7 10 12 8 8 5 1 6 4 15 11 Fast Attach 91 | 7 5 . 8 8 . 1 . 8 2 5 4 5 1 11 . 12 14 Attach 67 | . 3 . 4 9 . 1 5 1 3 . 3 1 1 1 . 11 24 Detach 13 | . . . . 1 . . . . . . 1 . . 1 . 2 8 Swap 147 | . 9 4 4 21 2 3 1 2 9 7 10 3 6 9 12 30 15 Drop 172 | . 10 1 14 26 1 11 1 19 10 14 10 8 3 21 4 15 4 Fire 782 | 20 75 19 55 119 1 . . 31 40 26 70 7 17 24 30 104 144 Melee 20 | . . . . 20 . . . . . . . . . . . . . Ram 2 | . . . . . . . . . . . . . . 1 . . 1 Kick . | . . . . . . . . . . . . . . . . . . Crush 11 | . . . . 5 . . . . . . 2 . . 2 . 2 . Escape Stasis 21 | . . . . . . . . . . . . . . . . 21 . Rewire 88 | . . . . 7 25 . . . . . . . . 56 . . . Trap . | . . . . . . . . . . . . . . . . . . Miscellaneous . | . . . . . . . . . . . . . . . . . . Route ------- -11/Scrapyard -10/Materials (discovered 4 exits: *Mat x2 / [*Min x2]) -10/Mines -9/Materials (discovered 3 exits: Min / *Sto x2) -9/Storage -9/Recycling -9/Scraptown (discovered 2 exits: *Fac x2) -6/Factory -6/DSF -5/Factory (discovered 3 exits: *Fac / *Upp x2) -5/Waste -5/Factory (discovered 3 exits: Fac / *Upp x2) -5/Upper Caves -5/Upper Caves (discovered 2 exits: *Fac / *War) -5/Warlord -4/Proximity Caves -4/Factory (discovered 3 exits: *Res / Upp x2) -3/Research History --------- Turn | Location | Event 15 | -11/Scrapyard | Discovered new exit (range 15) 179 | -11/Scrapyard | Entered Materials 316 | -10/Materials | Build established: Mutant 421 | -10/Materials | Discovered new exit (range 14) 456 | -10/Materials | Discovered new exit (range 16) 619 | -10/Materials | Discovered new exit (range 5) 901 | -10/Materials | Discovered new exit (range 5) 916 | -10/Materials | Core integrity fell below 50% 1219 | -10/Materials | Entered Mines 1261 | -10/Mines | Discovered new exit (range 5) 1303 | -10/Mines | Core integrity fell below 20% 1355 | -10/Mines | Entered Materials 1355 | -9/Materials | Evolved 2 slots: Propulsion x1, Utility x1 1481 | -9/Materials | Discovered new exit (range 13) 1550 | -9/Materials | Repaired Lgt. Assault Rifle 1578 | -9/Materials | Repaired Aluminum Leg 1605 | -9/Materials | Repaired Aluminum Leg 1913 | -9/Materials | Build established: Scavenger-Mutant 2061 | -9/Materials | Discovered new exit (range 3) 2142 | -9/Materials | Identified exit to Mines 2142 | -9/Materials | Identified exit to Storage 2286 | -9/Materials | Entered Storage 2372 | -9/Storage | Met 01-MTF 2636 | -9/Storage | Build established: Mutant 2951 | -9/Storage | Core integrity fell below 50% 2998 | -9/Storage | Destroyed 01-MTF 3023 | -9/Storage | Lost 5 parts (2n2u1w) 3291 | -9/Storage | Learned location of Armory (-3) 3625 | -9/Storage | Core integrity fell below 20% 3916 | -9/Storage | Used back door to open Recycling access 3916 | -9/Storage | Discovered new exit (range 5) 3923 | -9/Storage | Entered Recycling 4019 | -9/Recycling | Scanned before Scraplab entrance 4365 | -9/Recycling | Entered Scraplab 4379 | -9/Recycling | Discovered new exit (range 2) 4395 | -9/Recycling | Entered Scraptown 4395 | -9/Scraptown | Accompanied by 4 allies 4395 | -9/Scraptown | System corruption cleaned by C-Scrubber 4437 | -9/Scraptown | Build established: Commander-Mutant 4663 | -9/Scraptown | Visited Symbiants 4685 | -9/Scraptown | Visited Scrapoid Research Area 5104 | -9/Scraptown | Discovered new exit (range 9) 5179 | -9/Scraptown | Visited Assassins FH 5202 | -9/Scraptown | Visited CR-KLE's Repair Center 5218 | -9/Scraptown | CR-KLE repaired 7 parts 5261 | -9/Scraptown | Visited SPCMW 5331 | -9/Scraptown | Visited Science Testing Area 5343 | -9/Scraptown | Visited Awakened 5387 | -9/Scraptown | Visited UFD Registry 5387 | -9/Scraptown | Registered with UFD as "Fiberplate" 5428 | -9/Scraptown | Visited Supply Room 5471 | -9/Scraptown | Visited LU-1G1's Boring Crew 5492 | -9/Scraptown | Visited Abandonware Association 5528 | -9/Scraptown | Learned abandonware demo "KABOOM.EXE" 5798 | -9/Scraptown | Visited Botcube Research 5832 | -9/Scraptown | Visited Analyses Database 5880 | -9/Scraptown | Visited Scrap Suit Storage 5950 | -9/Scraptown | Visited Junk Repository 6027 | -9/Scraptown | Visited Derelict Rescue Squad 6049 | -9/Scraptown | Found DRS Beacon 6120 | -9/Scraptown | Visited Cartography Club 6178 | -9/Scraptown | Found Surveybot 17 Chip 6354 | -9/Scraptown | Found Scrap Suit 6376 | -9/Scraptown | Discovered new exit (range 3) 6398 | -9/Scraptown | Entered Factory 6398 | -6/Factory | Accompanied by 4 allies 6398 | -6/Factory | Evolved 6 slots: Power x1, Propulsion x1, Utility x3, Weapon x1 6514 | -6/Factory | Central database locked down 6687 | -6/Factory | Build established: Commander-Tank 6693 | -6/Factory | Identified exit to DSF 6695 | -6/Factory | Entered DSF 6695 | -6/DSF | Accompanied by 4 allies 6730 | -6/DSF | Additional patrols routed to DSF 6791 | -6/DSF | Lost 3 allies 6920 | -6/DSF | Sterilization system engaged 6940 | -6/DSF | Ambient heat levels rising (+10) 6952 | -6/DSF | Discovered new exit (range 16) 6955 | -6/DSF | Ambient heat levels rising (+10) 6970 | -6/DSF | Ambient heat levels rising (+10) 6985 | -6/DSF | Ambient heat levels rising (+10) 7000 | -6/DSF | Ambient heat levels rising (+10) 7015 | -6/DSF | Ambient heat levels rising (+10) 7030 | -6/DSF | Ambient heat levels rising (+10) 7045 | -6/DSF | Ambient heat levels rising (+10) 7060 | -6/DSF | Ambient heat levels rising (+10) 7075 | -6/DSF | Ambient heat levels rising (+10) 7090 | -6/DSF | Ambient heat levels rising (+10) 7105 | -6/DSF | Ambient heat levels rising (+10) 7108 | -6/DSF | Entered Factory 7108 | -5/Factory | Evolved 2 slots: Utility x2 7176 | -5/Factory | Loaded intel: 8 recycling unit locations 7374 | -5/Factory | Build established: Tank 7437 | -5/Factory | Discovered new exit (range 19) 7453 | -5/Factory | Discovered new exit (range 20) 7703 | -5/Factory | Scrapoids reinforcements arrived? 7738 | -5/Factory | Attached CPS modules to 05F03-D. 7740 | -5/Factory | Attached CPS modules to 05F05-D. 7796 | -5/Factory | Identified exit to Upper Caves 7858 | -5/Factory | Sucked down chute 7858 | -5/Factory | Entered Waste 7916 | -5/Waste | Spotted C-40 Crusher 7933 | -5/Waste | 5 allies followed down the chute 7940 | -5/Waste | Allies destroyed C-40 Crusher 7982 | -5/Waste | Found Scrap Suit 8044 | -5/Waste | Spotted C-40 Crusher 8058 | -5/Waste | Allies destroyed C-40 Crusher 8061 | -5/Waste | Spotted C-40 Crusher 8069 | -5/Waste | Allies destroyed C-40 Crusher 8074 | -5/Waste | Spotted C-40 Crusher 8312 | -5/Waste | Spotted C-40 Crusher 8393 | -5/Waste | Spotted C-40 Crusher 8398 | -5/Waste | Discovered new exit (range 10) 8412 | -5/Waste | Entered Factory 8556 | -5/Factory | Build established: Scavenger-Tank 9080 | -5/Factory | Discovered new exit (range 15) 9618 | -5/Factory | Loaded intel: 8 recycling unit locations 9966 | -5/Factory | Cargo convoy interrupted 10136 | -5/Factory | Scrapoids reinforcements arrived? 10249 | -5/Factory | Entered Upper Caves 10249 | -5/Upper Caves | Accompanied by 5 allies 10434 | -5/Upper Caves | Build established: Commander-Tank 10679 | -5/Upper Caves | Attracted the attention of an 0b10 checkpoint 10694 | -5/Upper Caves | Attached CPS modules to 05F07-D. 10725 | -5/Upper Caves | Found Scrap Suit 10759 | -5/Upper Caves | Discovered new exit (range 19) 10846 | -5/Upper Caves | Entered another Upper Caves area 10846 | -5/Upper Caves | Accompanied by 4 allies 10846 | -5/Upper Caves | Discovered new exit (range 9) 11077 | -5/Upper Caves | Learned Factory emergency access door positions 11153 | -5/Upper Caves | Build established: Scavenger-Scrapper 11176 | -5/Upper Caves | Discovered new exit (range 15) 11235 | -5/Upper Caves | Entered Warlord 11235 | -5/Warlord | Accompanied by 2 allies 11257 | -5/Warlord | Discovered new exit (range 20) 11547 | -5/Warlord | Rebuked by Warlord 11555 | -5/Warlord | Warlord's base attacked by MAIN.C 11734 | -5/Warlord | Found Prototype Energy Cannon 11736 | -5/Warlord | Found Prototype Energy Cannon 11736 | -5/Warlord | Identified Vortex Driver (x2) 11802 | -5/Warlord | Found Prototype Reactor 11814 | -5/Warlord | Found Prototype Processor 11814 | -5/Warlord | Identified Exp. Target Analyzer 11825 | -5/Warlord | Found Prototype Hackware 11831 | -5/Warlord | Found Prototype Device 11831 | -5/Warlord | Identified Exp. Cloaking Device 11905 | -5/Warlord | Warlord forces counterattacked 12007 | -5/Warlord | Spotted Executioner 12008 | -5/Warlord | Spotted Striker 12044 | -5/Warlord | Spotted Executioner 12085 | -5/Warlord | Spotted Executioner 12111 | -5/Warlord | Allies destroyed Executioner 12134 | -5/Warlord | Lost 30 allies 12137 | -5/Warlord | Found Corrupted Prototype Processor 12161 | -5/Warlord | Entered Proximity Caves 12161 | -4/Proximity Caves | Accompanied by 1 ally 12629 | -4/Proximity Caves | Learned Research trap positions 12660 | -4/Proximity Caves | Discovered new exit (range 12) 12948 | -4/Proximity Caves | Identified Exp. Core Analyzer 12951 | -4/Proximity Caves | Entered Factory 12951 | -4/Factory | Evolved 2 slots: Utility x2 13061 | -4/Factory | Loaded intel: 8 recycling unit locations 13291 | -4/Factory | Build established: Scavenger-Gunner 13787 | -4/Factory | Scrapoids reinforcements arrived? 13872 | -4/Factory | Found Scrap Suit 13895 | -4/Factory | Discovered new exit (range 15) 13941 | -4/Factory | P-70 Sage assimilated allied 04F13-D 13957 | -4/Factory | Lost 3 allies 13997 | -4/Factory | Lost 7 parts (1p3u3w) 14015 | -4/Factory | Scrapoid reinforcements arrived 14083 | -4/Factory | Identified exit to Upper Caves 14115 | -4/Factory | Spotted B-86 Titan 14172 | -4/Factory | Lost 5 allies 14199 | -4/Factory | Entered Research 14199 | -3/Research | Evolved 2 slots: Utility x2 14200 | -3/Research | Loaded intel: 71 trap records 14300 | -3/Research | Fabricated Huge Storage Unit (x1) 15072 | -3/Research | Lost 3 parts (1p2u) 15199 | -3/Research | First assault squad dispatched 15218 | -3/Research | Lost 7 parts (1p2n3u1w) 15219 | -3/Research | Destroyed 8 combat bots 15267 | -3/Research | Core integrity fell below 50% 15299 | -3/Research | Identified Vortex Chain Reactor 15335 | -3/Research | Lost 9 parts (1p1n3u4w) 15552 | -3/Research | System corruption reached 10% 15555 | -3/Research | Core integrity fell below 20% 15605 | -3/Research | Found Corrupted Prototype Device 15605 | -3/Research | Identified Exp. ECM Suite 15654 | -3/Research | Lost 4 parts (3u1w) 15732 | -3/Research | Lost 4 parts (2p2w) 15742 | -3/Research | Destroyed by H-71 Marshal with Heavy Mass Driver Last Messages --------------- 15709_ K-01 Serf suffers critical hit (Destroy). 15709_ K-01 Serf destroyed. 15711_ Slug penetrates Wall. 15713_ Slug penetrates G-67 Veteran. 15714_ G-67 Veteran suffers critical hit (Destroy). 15714_ Destroyed Field Laser. 15716_ Slug penetrates G-67 Veteran. 15716_ G-67 Veteran destroyed. 15728_ System corrupted: IFF burst signal emitted. 15729_ ALERT: Suspicious intruders detected, dispatching Specialist reinforcements to area. 15733_ Acquired Prototype Leg. 15733_ Identified Enh. Multireflex Exoskeleton. 15733_ KE Penetrator broken. 15733_ Faulty integration triggers power surge. 15737_ Dropped Faulty Enh. Multireflex Exoskeleton. 15737_ Acquired Enh. Multireflex Exoskeleton. 15741_ K-01 Serf collects debris. 15741_ Acquired Enh. Multireflex Exoskeleton. 15742_ Penetrated by Slug. Map ----- +----------------------------------------------------+ | ?????????????????????????????????????????????????? | | ?????????????????????????????????????????????????? | | ?????????????????????????????????????????????????? | | ?????????????????????????????????????????????????? | | ?????????????????????????????????????????????????? | | ?????????????????????????????????????????????????? | | ?????????????????????????????????????????????????? | | ?????????????????????????????????????????????????? | | ?????????????????????????????????????????????????? | | ?????????????????????????????????????????????????? | | ????????????????????????????????????#????????????? | | ??????????????????????????????????? #????????????? | | ?????????????????????????????????? #????????????? | | ????????????????????????????????? ?????????????? | | ????????????????????????????????? ?????????????? | | ???????????????????????###?????? ??????????????? | | ????????????????????????T ###### ???????????????? | | ????????????????^???????? ????????????????? | | ???????????????^????????? ?????????????????? | | ???????????????^^????????? km??????????????????? | | ???????????????^^?????????? % ???????????????????? | | ???????????????????????#####H#####???????????????? | | ???????????????????????# *!%*[! #???????????????? | | ???????????????????????# = %%[ #???????????????? | | ???????????????????????# == #???????????????? | | ???????????????????????# @!! [%! #???????????????? | | ???????????????????????#= ! * ####????????????? | | ???????????????????????#% ! + #????????????? | | ???????????????????????# ## #????????????? | | ???????????????????????# ## #????????????? | | ???????????????????????#;########## #????????????? | | ???????????????????????##????######+###########??? | | ?????????????????????????????# ## #??^ | | ?????????????????????????????# ## +??? | | ?????????????????????????????#] ## ???? | | ?????????????????????????????# ## ???? | | ?????????????????????????????# ! ## ????? | | ?????????????????????????????# !!=## ?? #?? | | ?????????????????????????????# **! ##"###""### | | ?????????????????????????????# ! =[!#[* | | ?????????????????????????????# %[!===+%!= [% | | ?????????????????????????????####+#####**! !%= | | ???????????????????#######+### = [* %|!=% [ | | ?????????????? ^ [! | | ?????????????? ^ ! | | ?????????????? ^ %[ ] | | ?????????????? ^ """ #### | | ??????????????? ^ """ ###+##### | | ???????????????####+##### """ # #?# | | ????????????????????????# # #?# = | +----------------------------------------------------+ Best States ------------- Heat Dissipation 92 Coolant Potential 160 Energy Generation 70 Energy Capacity 700 Matter Stores 546 Matter Capacity 800 Sight Range 20 Terrain Scan Range 20 Terrain Scan Density 1210 ECM Strength 3 Jamming Range 14 Power Amplification 30 Armor Coverage 1200 Resistance: KI 25 Resistance: EM 15 Utility Shielding 66 Weapon Cycling 30 Evasion (%) 55 Targeting Accuracy 8 Target Analysis 10 Core Analysis 8 Recoil Reduction 4 Kinecelleration 40 Offensive Hacking 12 Item Schematics ----------------- Hcp. Storage Unit | -10/Materials | Hacked Huge Storage Unit | -9/Materials | Hacked Hvy. Treads | -5/Factory | Hacked Robot Schematics ------------------ None Fabricated ------------ Huge Storage Unit | x1 | -3/Research Repaired ---------- Lgt. Assault Rifle | 27% | -9/Materials Aluminum Leg | 31% | -9/Materials Aluminum Leg | 64% | -9/Materials Studied --------- Lgt. Treads | -6/Factory | Hacked Hvy. Treads | -5/Factory | Hacked Alien Tech Used ----------------- None Achievements -------------- Bumper Bots Fancy Inventory Hot Goods Hydra Into The Breach Plot Armor Spot Them First That Tickles Well Done Window Shopping Challenges ------------ None Game ------ Seed RestorationReactionNullifier Manual? 0 Play Time 02:24:52 Cumulative 732.3 hours Start 2025.10.25 @ 11:57:05 End 2025.10.25 @ 15:52:03 Sessions 3 Manual Loads 0 Difficulty Rogue Special Mode None Game No. 460 Rogue 460 Adventurer 0 Explorer 0 Win Type - Total 10 Types 7/0/1/1/1/0/0/0/0/0 Lore% 79 Gallery% 78 Achievement% 50 Wizard Run 0 Options --------- Layout 0 ASCII 0 Keyboard 0 Movement Mouse Keybinds 1 Fullscreen 2 Font 24/Smallcaps Map View 76x50 Zoom Use 0% Tactical HUD 1 Map Filters NONE Filters NONE Steam 1 RUN: 745d15b2-b7a9-442c-9430-7cc2f0e1bd13